bitfinex-derivatives/quotes_SOLF0:USTF0_20251219
["timestamp","ask_amount","ask_price","bid_price","bid_amount"]
[1766114782062,19.75,121.42,121.32,115.4719]
[1766114782367,68.47,121.42,121.33,122.8846]
[1766114782761,48.72,121.44,121.35,115.4416]
[1766114782963,0.0618591,121.41,121.38,0.05249387]
[1766114784773,0.0618591,121.41,121.33,17.7]
[1766114784969,68.47,121.47,121.37,17.7]
[1766114785169,68.47,121.47,121.38,7.3528737]
[1766114785469,68.47,121.47,121.37,25.1196]
[1766114785667,68.47,121.47,121.38,7.34517358]
[1766114785668,191.2161,121.47,121.38,7.34517358]
[1766114785868,0.05514688,121.44,121.41,0.06279846]
[1766114786171,0.05514688,121.44,121.41,0.00279846]
[1766114786365,0.05514688,121.44,121.36,133.1536]
[1766114786565,19.75,121.47,121.38,115.414]
[1766114786981,19.75,121.51,121.41,133.0864]
[1766114787180,68.47,121.54,121.43,133.0671]
[1766114787380,19.75,121.58,121.48,115.3196]
[1766114787671,19.75,121.58,121.48,255.6926]
[1766114787874,115.1504,121.66,121.53,17.64]
[1766114788077,115.1713,121.64,121.53,17.64]
[1766114788380,19.75,121.64,121.53,17.64]
[1766114788676,134.9207,121.64,121.53,17.64]
[1766114788878,0.0571399,121.6,121.57,0.05208563]
[1766114789064,183.7171399,121.6,121.49,17.63]
[1766114789379,19.75,121.53,121.42,232.72321906]
[1766114789674,115.2655,121.54,121.45,115.3457]
[1766114789675,48.7,121.54,121.45,115.3457]
[1766114789862,115.2296,121.58,121.45,115.3457]
[1766114789863,134.9796,121.58,121.45,133.0066]
[1766114790066,0.05844155,121.53,121.45,17.66]
[1766114790273,19.75,121.55,121.45,17.66]
[1766114790476,48.7,121.54,121.45,17.66]
[1766114790677,19.75,121.55,121.46,115.3363]
[1766114790877,48.68,121.57,121.47,140.32209747]
[1766114791179,0.05762268,121.53,121.51,0.05586772]
[1766114791475,0.05762268,121.53,121.44,48.68]
[1766114791777,0.05762268,121.53,121.4,115.3875]
[1766114791778,19.75,121.49,121.39,17.73]
[1766114791972,115.332,121.47,121.4,7.30833743]
[1766114792174,48.68,121.5,121.4,133.1017]
[1766114792368,183.6513,121.59,121.47,115.3267]
[1766114792577,115.2369,121.57,121.46,17.66]
[1766114792874,122.6555,121.56,121.46,17.66]
[1766114793078,115.2602,121.55,121.46,17.66]
[1766114793272,163.947,121.54,121.42,133.0136]
[1766114793477,171.357,121.54,121.49,0.05692093]
[1766114793678,171.357,121.54,121.42,133.0137]
[1766114793978,171.357,121.54,121.38,17.64]
[1766114793979,115.3153,121.49,121.38,17.64]
[1766114794282,68.43,121.5,121.39,122.70815395]
[1766114794480,68.43,121.5,121.4,7.30615395]
[1766114794678,0.00275648,121.46,121.44,0.06004188]
[1766114794879,48.68,121.52,121.43,17.57]
[1766114795381,48.68,121.51,121.4,164.0525]
[1766114795673,0.06308896,121.47,121.44,0.05984347]
[1766114795874,0.06308896,121.47,121.41,122.69173942]
[1766114795875,19.75,121.52,121.42,115.375]
[1766114796080,68.41,121.52,121.41,132.9364]
[1766114796276,48.66,121.52,121.42,140.16480111]
[1766114796490,19.75,121.56,121.45,115.3465]
[1766114796686,19.75,121.56,121.46,24.78037832]
[1766114796687,68.41,121.56,121.46,24.78037832]
[1766114796978,17.80958112,121.6,121.5,132.76399292]
[1766114796979,0.00047949,121.52,121.5,132.76399292]
[1766114797175,48.66,121.61,121.51,132.6895]
[1766114797490,48.66,121.61,121.51,17.4]
[1766114798287,19.8021772,121.57,121.47,17.38]
[1766114798582,48.66,121.6,121.49,17.44]
[1766114798779,68.41,121.61,121.5,132.7341]
[1766114798981,68.41,121.61,121.5,17.44]
[1766114799178,115.1755,121.64,121.52,17.42]
[1766114799387,0.00434554,121.59,121.57,0.05851188]
[1766114799586,115.1517,121.66,121.55,17.42]
[1766114799775,115.1653,121.65,121.55,17.42]
[1766114800078,122.5734,121.64,121.55,17.42]
[1766114800282,0.06209087,121.61,121.58,0.06204587]
[1766114800483,0.06209087,121.61,121.58,0.05711686]
[1766114800671,0.06209087,121.61,121.52,48.64]
[1766114800875,0.06209087,121.61,121.51,17.36]
[1766114800876,19.75,121.58,121.47,17.42]
[1766114801184,134.9855,121.57,121.47,17.42]
[1766114801489,115.2546,121.55,121.43,181.3986]
[1766114801988,135.11610204,121.5,121.48,3.881e-05]
[1766114802290,115.3211,121.48,121.37,56.0601]
[1766114802587,134.4436,121.53,121.4,115.3947]
[1766114802888,134.4718,121.5,121.37,132.8339]
[1766114803079,0.00057076,121.45,121.42,0.05662592]
[1766114803279,19.17,121.5,121.4,132.7212]
[1766114803581,163.9328,121.51,121.4,17.33]
[1766114803776,183.1028,121.51,121.4,17.33]
[1766114803973,122.7255,121.49,121.37,122.8438]
[1766114804173,122.7255,121.49,121.37,7.4199]
[1766114804174,134.4912,121.48,121.37,7.4199]
[1766114804378,0.06186385,121.44,121.41,0.06316401]
[1766114804983,48.64,121.49,121.41,0.06316401]
[1766114805187,163.9357,121.51,121.4,17.24]
[1766114805488,56.052,121.51,121.4,24.6579]
[1766114805688,183.1026,121.51,121.4,17.24]
[1766114805887,115.2664,121.54,121.43,17.24]
[1766114806184,0.05889127,121.5,121.47,0.06266459]
[1766114806377,0.05889127,121.5,121.47,0.05585291]
[1766114806782,0.05889127,121.5,121.4,115.3951]
[1766114806994,19.17,121.52,121.41,115.3861]
[1766114807189,19.17,121.52,121.43,115.367]
[1766114807381,19.17,121.52,121.43,115.3666]
[1766114807693,0.05400567,121.49,121.46,0.06038936]
[1766114808391,0.05400567,121.49,121.41,7.4174]
[1766114808581,48.64,121.51,121.41,7.4174]
[1766114808776,48.64,121.51,121.42,122.7931]
[1766114808983,48.64,121.51,121.42,7.4167]
[1766114809184,0.0536926,121.48,121.45,0.06146974]
[1766114809484,0.0536926,121.48,121.39,181.2703]
[1766114809686,19.17,121.5,121.39,65.87]
[1766114809877,19.17,121.5,121.39,73.2888]
[1766114809878,19.17,121.49,121.39,73.2888]
[1766114810193,67.81,121.51,121.38,17.35]
[1766114810383,67.81,121.51,121.41,132.7359]
[1766114810583,0.06148856,121.47,121.4,7.418]
[1766114810878,0.06148856,121.47,121.37,132.8345]
[1766114811079,19.17,121.49,121.38,7.4192]
[1766114811479,19.17,121.45,121.35,115.4402]
[1766114811678,19.17,121.45,121.39,0.05731437]
[1766114812690,0.05352224,121.43,121.39,0.05731437]
[1766114814291,0.05352224,121.43,121.39,7.47591437]
[1766114814593,0.05352224,121.43,121.39,0.05731437]
[1766114815583,0.00352224,121.43,121.4,7.4179]
[1766114815988,0.00352224,121.43,121.39,0.05731437]
[1766114816393,36.97958112,121.52,121.41,230.7709]
[1766114816696,26.5818,121.51,121.41,230.7709]
[1766114817289,0.05957463,121.47,121.45,0.06337983]
[1766114817693,19.17,121.51,121.45,0.06337983]
[1766114817895,115.2245,121.59,121.45,0.06337983]
[1766114817896,26.14865447,121.55,121.45,115.40757983]
[1766114818196,19.17,121.55,121.47,115.3293]
[1766114818396,19.17,121.55,121.46,115.3379]
[1766114818697,0.05677225,121.52,121.49,0.00170087]
[1766114818892,19.22677225,121.52,121.43,17.21]
[1766114819084,19.17,121.52,121.43,17.21]
[1766114819588,19.17,121.52,121.44,7.4154]
[1766114819897,115.2497,121.56,121.47,0.05692237]
[1766114819898,19.17,121.56,121.47,0.05692237]
[1766114820098,19.17,121.56,121.46,115.3327]
[1766114820301,19.17,121.53,121.43,132.5723]
[1766114820597,26.14865447,121.53,121.43,17.21]
[1766114820893,26.14865447,121.56,121.47,115.3874902]
[1766114821097,19.17,121.55,121.46,132.5134]
[1766114821295,19.17,121.52,121.43,115.3669]
[1766114821590,19.17,121.52,121.42,132.4858]
[1766114821790,19.17,121.52,121.44,7.4156]
[1766114821991,0.0557618,121.48,121.46,0.05205356]
[1766114822191,0.0557618,121.48,121.41,230.7713]
[1766114822392,0.0557618,121.48,121.42,115.3743]
[1766114822588,48.66,121.55,121.47,115.3253]
[1766114822792,19.25,121.57,121.47,132.4153]
[1766114822793,26.22865447,121.57,121.47,132.4153]
[1766114822995,19.25,121.55,121.44,115.3572]
[1766114823297,19.25,121.53,121.43,65.73]
[1766114823498,0.05739852,121.49,121.47,0.06339193]
[1766114824201,0.05739852,121.49,121.43,48.64]
[1766114824499,0.05739852,121.49,121.43,56.0563]
[1766114825102,0.05739852,121.49,121.45,0.05804]
[1766114825298,19.25,121.57,121.46,132.3976]
[1766114825902,7.4087,121.56,121.48,7.4132]
[1766114826402,26.22865447,121.58,121.51,7.47057425]
[1766114826603,19.25,121.65,121.56,115.244]
[1766114826994,55.61865447,121.68,121.58,115.2252]
[1766114827200,19.25,121.69,121.61,115.1966]
[1766114827395,19.25,121.73,121.62,132.1757]
[1766114827605,1.36692929,121.77,121.67,16.99]
[1766114827606,19.25,121.77,121.67,16.99]
[1766114827800,19.25,121.75,121.64,132.098]
[1766114828113,19.25,121.75,121.64,16.93]
[1766114828114,82.26655447,121.74,121.64,16.93]
[1766114828294,82.26655447,121.74,121.61,163.8357]
[1766114828295,19.25,121.72,121.61,163.8357]
[1766114828604,0.00247305,121.68,121.65,0.06042899]
[1766114828812,48.64,121.75,121.66,115.1452]
[1766114828996,67.89,121.75,121.64,16.86]
[1766114829196,67.89,121.75,121.61,163.8362]
[1766114829197,19.25,121.71,121.61,163.8362]
[1766114829408,134.3243,121.74,121.64,16.85]
[1766114829603,134.3243,121.74,121.6,115.204]
[1766114829604,19.25,121.71,121.6,24.2559]
[1766114829808,19.25,121.74,121.63,132.0862]
[1766114830008,19.25,121.74,121.61,7.4053]
[1766114830009,19.25,121.72,121.61,7.4053]
[1766114830205,19.25,121.75,121.64,16.9]
[1766114830508,141.7126,121.75,121.64,24.3033]
[1766114830701,141.7126,121.75,121.68,0.05940052]
[1766114830702,0.05759164,121.71,121.68,0.05940052]
[1766114830897,134.2767,121.79,121.68,0.05940052]
[1766114831101,19.25,121.79,121.67,139.3689]
[1766114831302,134.2482,121.83,121.71,131.9295]
[1766114831503,19.25,121.83,121.72,16.83]
[1766114831698,19.25,121.83,121.72,131.9194]
[1766114832107,19.25,121.83,121.67,17.74231434]
[1766114832108,134.2887,121.78,121.66,115.1488]
[1766114832410,141.684,121.78,121.66,132.0267]
[1766114832709,134.2885,121.78,121.67,16.88]
[1766114832913,133.9067,121.75,121.65,48.62]
[1766114833115,115.0571,121.76,121.69,0.00186536]
[1766114833116,18.84,121.7,121.69,0.00186536]
[1766114833306,18.84,121.7,121.59,139.44]
[1766114833500,18.84,121.7,121.6,115.1993]
[1766114833714,115.1248,121.69,121.57,16.87]
[1766114833901,133.9561,121.7,121.59,16.87]
[1766114834107,18.84,121.7,121.59,16.87]
[1766114834310,115.0854,121.73,121.63,0.05921758]
[1766114834512,67.44,121.74,121.63,115.1716]
[1766114834716,18.84,121.72,121.63,48.58]
[1766114834919,163.6765,121.74,121.63,65.39]
[1766114834920,48.6,121.74,121.63,65.39]
[1766114835215,18.84,121.76,121.66,16.8]
[1766114835416,0.00259919,121.7,121.66,131.9459]
[1766114835617,115.0035,121.82,121.7,16.75]
[1766114836005,18.84,121.83,121.73,115.08]
[1766114836202,18.84,121.83,121.73,16.74]
[1766114836404,163.5774,121.85,121.75,115.0639]
[1766114836405,48.6,121.85,121.75,115.0639]
[1766114836609,48.6,121.85,121.74,163.648]
[1766114836610,0.0605054,121.81,121.79,0.05912665]
[1766114837511,0.0005054,121.81,121.79,0.05912665]
[1766114838226,67.42,121.87,121.79,0.05912665]
[1766114838521,170.8943,121.9,121.78,122.43]
[1766114838711,114.9339,121.89,121.78,24.0548]
[1766114838909,18.84,121.9,121.79,139.0775]
[1766114839114,18.84,121.9,121.83,0.05314832]
[1766114839317,48.58,121.92,121.83,0.05314832]
[1766114839511,48.58,121.92,121.8,16.6]
[1766114839512,122.3027,121.91,121.8,16.6]
[1766114839714,133.7635,121.9,121.79,48.56]
[1766114840019,133.7926,121.87,121.76,16.6]
[1766114840224,18.84,121.89,121.8,0.00196752]
[1766114840407,18.84,121.89,121.78,16.59]
[1766114840721,18.84,121.89,121.78,131.6246]
[1766114840912,114.952,121.87,121.75,163.6199]
[1766114841112,163.532,121.87,121.75,163.6199]
[1766114841419,0.00271418,121.82,121.8,0.05547478]
[1766114841621,67.4,121.9,121.79,115.0211]
[1766114841820,74.7883,121.9,121.79,122.4198]
[1766114842007,114.9339,121.89,121.77,131.5679]
[1766114842329,114.9723,121.85,121.75,48.56]
[1766114842622,0.00359667,121.81,121.79,0.05197345]
[1766114842837,48.56,121.88,121.76,16.5]
[1766114842838,133.8024,121.86,121.76,16.5]
[1766114843319,133.8221,121.84,121.73,48.54]
[1766114843524,18.84,121.78,121.67,1.96693503]
[1766114843715,182.4412,121.78,121.71,0.06278219]
[1766114844016,17.74231434,121.81,121.71,16.55278219]
[1766114844017,133.8477,121.81,121.71,16.55278219]
[1766114844324,133.8484,121.81,121.75,0.06178411]
[1766114844521,48.56,121.83,121.75,0.06178411]
[1766114844522,55.9522,121.83,121.75,0.06178411]
[1766114844829,115.0078,121.81,121.71,16.49]
[1766114845120,133.8576,121.8,121.7,48.54]
[1766114845317,141.252,121.8,121.7,48.54]
[1766114845525,18.84,121.84,121.73,115.0817]
[1766114845823,18.84,121.84,121.77,0.05584827]
[1766114845824,0.05426282,121.8,121.77,0.05584827]
[1766114846028,18.84,121.88,121.78,115.0306]
[1766114846228,48.54,121.89,121.79,115.0243]
[1766114846419,67.38,121.89,121.79,7.3941]
[1766114846718,67.38,121.89,121.79,122.4204]
[1766114846925,18.84,121.89,121.83,0.0564295]
[1766114847910,114.9064,121.92,121.83,0.0564295]
[1766114847911,114.9022,121.93,121.83,16.5164295]
[1766114848117,133.6969,121.97,121.87,0.05438529]
[1766114848308,18.84,121.94,121.84,16.46]
[1766114848512,182.2657,121.94,121.84,16.46]
[1766114848715,182.2657,121.94,121.8,115.0169]
[1766114848716,133.7649,121.9,121.8,16.52]
[1766114848927,48.54,121.89,121.8,115.0165]
[1766114849223,133.8033,121.86,121.74,115.0651]
[1766114849524,0.05443938,121.81,121.79,0.06251155]
[1766114849708,18.84,121.86,121.79,0.06251155]
[1766114849914,48.54,121.88,121.79,0.06251155]
[1766114850115,48.54,121.88,121.78,115.0322]
[1766114850411,48.54,121.88,121.76,163.5723]
[1766114850631,18.84,121.84,121.73,115.0825]
[1766114850815,48.54,121.83,121.77,0.06303762]
[1766114851312,67.38,121.83,121.77,0.06303762]
[1766114851517,133.8487,121.81,121.72,48.52]
[1766114851717,133.8487,121.81,121.68,131.6797]
[1766114851718,18.84,121.79,121.68,131.6783]
[1766114852023,74.7749,121.79,121.69,7.4002]
[1766114852223,18.84,121.79,121.69,131.6689]
[1766114852414,48.54,121.81,121.71,115.1004]
[1766114852609,0.05701302,121.77,121.75,0.05375668]
[1766114852810,0.05627548,121.77,121.75,0.05246891]
[1766114853018,18.84,121.83,121.75,0.05246891]
[1766114853220,133.8329,121.83,121.72,7.3982]
[1766114853419,133.8329,121.83,121.71,131.6484]
[1766114853420,133.8425,121.82,121.71,16.55]
[1766114853836,114.9929,121.83,121.71,16.55]
[1766114853837,48.54,121.84,121.73,131.561]
[1766114854025,48.54,121.84,121.77,0.06029019]
[1766114854721,133.8316,121.83,121.77,0.06029019]
[1766114854923,7.3928,121.82,121.77,0.06029019]
[1766114855324,18.84,121.83,121.77,0.06029019]
[1766114855532,18.84,121.87,121.77,131.57399019]
[1766114855737,18.84,121.87,121.81,0.06007936]
[1766114856023,48.54,121.9,121.81,0.06007936]
[1766114856225,48.54,121.9,121.84,0.05191759]
[1766114856531,48.54,121.92,121.84,0.05191759]
[1766114856727,18.84,121.9,121.87,0.00378753]
[1766114857027,18.84,121.9,121.8,16.46]
[1766114857223,114.9609,121.86,121.76,16.51]
[1766114857421,133.8227,121.84,121.73,48.52]
[1766114857731,18.84,121.84,121.75,115.0634]
[1766114858027,0.06309133,121.81,121.78,0.06220796]
[1766114858224,0.06309133,121.81,121.78,0.06026812]
[1766114859321,0.00309133,121.81,121.78,115.09526812]
[1766114859519,0.00309133,121.81,121.79,115.0261]
[1766114859826,0.00309133,121.81,121.79,7.3941]
[1766114860324,48.52,121.9,121.83,7.3916]
[1766114860827,18.84,121.89,121.77,115.0451]
[1766114861026,133.7911,121.87,121.76,16.43]
[1766114861331,145.27977662,121.91,121.76,16.43]
[1766114861332,18.84,121.91,121.8,115.07861611]
[1766114861526,18.84,121.9,121.84,0.0594586]
[1766114862415,0.05382976,121.88,121.79,23.8143]
[1766114862619,0.05382976,121.88,121.75,180.0635]
[1766114862620,18.84,121.88,121.75,180.0635]
[1766114862821,17.7,121.85,121.75,16.48]
[1766114863021,25.0918,121.84,121.75,7.3967]
[1766114863316,17.7,121.84,121.75,115.063]
[1766114863629,48.52,121.86,121.78,0.05655066]
[1766114863826,48.52,121.86,121.77,115.0433]
[1766114864025,48.52,121.86,121.76,115.0543]
[1766114864222,48.52,121.86,121.78,7.3948]
[1766114864622,48.52,121.86,121.81,0.05471519]
[1766114864824,17.7,121.88,121.81,0.05471519]
[1766114865221,17.7,121.88,121.81,0.00471519]
[1766114865424,17.7,121.86,121.75,163.5618]
[1766114865625,17.7,121.86,121.77,115.0433]
[1766114865829,17.7,121.86,121.78,115.0356]
[1766114866430,0.05873716,121.83,121.81,0.05332298]
[1766114866730,0.05873716,121.83,121.81,0.00332298]
[1766114869126,17.75873716,121.83,121.81,0.00332298]
[1766114869431,17.7,121.82,121.74,48.5]
[1766114869633,66.22,121.81,121.71,16.46]
[1766114869819,66.22,121.81,121.7,115.1023]
[1766114869820,17.7,121.8,121.7,115.1105]
[1766114870328,0.0528311,121.76,121.74,0.05478878]
[1766114870529,0.0028311,121.76,121.74,0.05478878]
[1766114870736,0.0028311,121.76,121.74,7.45208878]
[1766114871036,17.7,121.84,121.77,115.0428]
[1766114871235,71.98709486,121.88,121.77,115.0428]
[1766114871431,23.46709486,121.88,121.79,7.3942]
[1766114871630,17.7,121.88,121.78,115.0334]
[1766114871936,0.05759005,121.84,121.82,0.0607306]
[1766114872323,23.46709486,121.9,121.82,0.0607306]
[1766114872531,17.7,121.88,121.78,16.4]
[1766114873030,17.7,121.88,121.76,48.5]
[1766114873031,17.7,121.87,121.76,48.5]
[1766114873233,17.7,121.87,121.8,0.05936218]
[1766114873436,25.09,121.87,121.8,0.05936218]
[1766114873631,5.76709486,121.9,121.8,0.05936218]
[1766114873832,48.52,121.89,121.84,0.06007407]
[1766114874137,48.52,121.89,121.84,7.407e-05]
[1766114874138,17.7,121.88,121.84,7.407e-05]
[1766114874336,17.7,121.89,121.84,7.407e-05]
[1766114874940,0.06163899,121.88,121.84,7.407e-05]
[1766114876637,0.00163899,121.88,121.84,114.97567407]
[1766114876944,0.00163899,121.88,121.85,137.22637362]
[1766114877234,0.00163899,121.88,121.84,7.407e-05]
[1766114877633,0.00163899,121.88,121.86,122.3486]
[1766114877830,0.00163899,121.88,121.86,9.03]
[1766114878032,0.00163899,121.88,121.86,123.9892]
[1766114878229,0.00163899,121.88,121.87,22.24506024]
[1766114878453,0.00163899,121.88,121.84,7.39137407]
[1766114878734,0.00163899,121.88,121.84,7.407e-05]
[1766114879335,0.00163899,121.88,121.85,5.94699587]
[1766114879537,0.00163899,121.88,121.84,16.31007407]
[1766114879841,0.00163899,121.88,121.87,16.31]
[1766114880142,48.5,121.97,121.87,5.94754424]
[1766114880335,25.0856,121.94,121.84,114.979]
[1766114880643,5.76709486,121.97,121.9,7.3874]
[1766114880839,23.46709486,121.98,121.9,7.3874]
[1766114881031,17.7,121.97,121.92,0.00174572]
[1766114881343,132.5685,121.96,121.87,48.5]
[1766114881536,7.3857,121.94,121.87,48.5]
[1766114881934,7.3863,121.93,121.83,16.36]
[1766114882237,17.7,121.88,121.76,138.41864255]
[1766114882437,0.0569482,121.83,121.81,0.05684941]
[1766114882635,0.06053304,121.83,121.81,0.00243081]
[1766114882833,20.76053304,121.83,121.73,16.35]
[1766114883031,20.76053304,121.83,121.7,163.5867]
[1766114883032,19.06,121.82,121.7,163.5867]
[1766114883235,19.06,121.82,121.68,122.13794255]
[1766114883236,19.06,121.79,121.68,115.1275]
[1766114883432,19.06,121.79,121.69,115.1194]
[1766114883853,0.05874191,121.75,121.73,0.06198365]
[1766114884243,5.76709486,121.81,121.73,0.06198365]
[1766114884548,19.06,121.82,121.72,115.0923]
[1766114884743,19.06,121.82,121.72,7.3983]
[1766114885134,134.0599,121.82,121.71,64.81]
[1766114885336,0.05543462,121.78,121.76,0.05757517]
[1766114885542,48.5,121.83,121.76,0.05757517]
[1766114885937,67.56,121.84,121.76,0.05757517]
[1766114886236,5.76709486,121.86,121.78,115.0349]
[1766114886440,19.06,121.88,121.79,115.024]
[1766114886640,19.06,121.88,121.82,0.06214599]
[1766114887237,24.82709486,121.92,121.82,115.05964599]
[1766114887443,114.8809,121.95,121.81,115.0049]
[1766114887444,5.76709486,121.95,121.87,114.951]
[1766114887642,19.06,121.96,121.87,114.951]
[1766114887840,19.06,121.96,121.9,0.05189245]
[1766114888047,133.9291,121.96,121.9,0.05189245]
[1766114888247,133.9291,121.96,121.82,138.6992]
[1766114888248,26.4958,121.94,121.82,138.6992]
[1766114888442,67.56,121.94,121.83,131.2964]
[1766114888647,48.5,121.94,121.86,114.9569]
[1766114888846,48.5,121.97,121.86,114.9569]
[1766114889050,48.5,121.97,121.87,7.3896]
[1766114889252,0.05189245,121.93,121.91,0.06272813]
[1766114889752,0.05189245,121.93,121.85,16.3]
[1766114890051,0.05189245,121.93,121.82,179.8371]
[1766114890052,19.06,121.93,121.82,179.8371]
[1766114890246,19.06,121.93,121.84,114.978]
[1766114890448,19.06,121.96,121.84,131.338]
[1766114890849,0.05293934,121.91,121.89,0.05248361]
[1766114891048,19.06,121.93,121.82,163.4771]
[1766114891243,19.06,121.93,121.82,179.8871]
[1766114891440,133.9579,121.93,121.82,64.89]
[1766114891641,48.5,121.92,121.82,16.41]
[1766114891838,67.56,121.93,121.82,16.41]
[1766114892044,0.05391928,121.89,121.79,16.46]
[1766114892239,19.06,121.89,121.77,163.5247]
[1766114892445,67.56,121.88,121.77,163.5247]
[1766114892652,74.9495,121.88,121.78,7.3948]
[1766114892948,67.56,121.88,121.78,115.0347]
[1766114893148,48.5,121.88,121.82,0.05550258]
[1766114893354,18.18,121.92,121.83,114.9866]
[1766114893552,18.18,121.92,121.82,131.4373]
[1766114893851,18.18,121.9,121.79,48.48]
[1766114894055,18.18,121.9,121.79,163.5063]
[1766114894352,0.05305002,121.86,121.83,0.058249]
[1766114895457,0.05305002,121.86,121.79,48.48]
[1766114896352,0.05305002,121.86,121.8,7.3939]
[1766114896551,0.05305002,121.86,121.82,0.05849041]
[1766114896957,18.18,121.85,121.74,180.1036]
[1766114897157,18.18,121.84,121.74,65.03]
[1766114897863,18.18,121.84,121.78,0.06117306]
[1766114897864,0.05624853,121.8,121.78,0.06117306]
[1766114898050,18.18,121.84,121.78,0.06117306]
[1766114898247,18.18,121.87,121.78,0.06117306]
[1766114898556,48.5,121.89,121.79,131.5152]
[1766114898746,48.5,121.89,121.8,131.5066]
[1766114898950,66.68,121.89,121.78,115.0359]
[1766114899155,0.05714721,121.85,121.82,0.05175863]
[1766114899356,0.05714721,121.85,121.82,0.00175863]
[1766114900058,18.23714721,121.85,121.82,0.00175863]
[1766114900357,19.87714721,121.85,121.73,65.01]
[1766114900555,48.5,121.84,121.73,65.01]
[1766114900947,48.5,121.84,121.75,16.53]
[1766114901459,0.05598871,121.81,121.78,0.05471067]
[1766114901660,18.18,121.85,121.78,0.05471067]
[1766114901855,18.18,121.89,121.78,16.52471067]
[1766114902059,18.18,121.88,121.76,115.0501]
[1766114902361,18.18,121.88,121.76,131.5208]
[1766114902550,18.18,121.87,121.76,131.5208]
[1766114902756,0.05722142,121.83,121.8,0.06150587]
[1766114904359,0.05722142,121.83,121.72,142.83152477]
[1766114904650,66.68,121.84,121.72,180.0424]
[1766114904850,66.68,121.84,121.74,115.0715]
[1766114905361,0.06022427,121.8,121.74,7.3974]
[1766114905562,0.06022427,121.8,121.74,115.0729]
[1766114905764,0.00022427,121.8,121.75,115.0631]
[1766114906060,0.00022427,121.8,121.7,131.6304]
[1766114906266,18.18,121.82,121.71,115.1019]
[1766114906472,18.18,121.82,121.71,131.6219]
[1766114906664,18.18,121.82,121.72,131.6085]
[1766114906963,0.05287873,121.78,121.76,0.05401283]
[1766114907264,0.00287873,121.78,121.76,0.05401283]
[1766114909765,0.00287873,121.78,121.76,0.00401283]
[1766114910266,0.00287873,121.78,121.72,16.52]
[1766114910869,0.00287873,121.78,121.74,7.3974]
[1766114911367,0.00287873,121.78,121.75,0.06264807]
[1766114915874,0.00287873,121.78,121.75,7.45934807]
[1766114916375,0.00287873,121.78,121.75,0.06264807]
[1766114916577,0.00287873,121.78,121.76,7.3962]
[1766114917174,0.00287873,121.78,121.75,0.06264807]
[1766114917771,0.00287873,121.78,121.75,0.00264807]
[1766114917979,0.00287873,121.78,121.69,16.5]
[1766114918282,7.3958,121.77,121.7,7.3999]
[1766114918575,18.18,121.79,121.7,7.3999]
[1766114918769,7.3959,121.77,121.7,7.3999]
[1766114918963,18.18,121.78,121.72,0.05412623]
[1766114919173,18.18,121.74,121.62,131.7965]
[1766114919368,18.18,121.74,121.62,7.4044]
[1766114919369,18.18,121.7,121.62,7.4044]
[1766114919666,6.94141124,121.72,121.62,115.1845]
[1766114919869,66.7,121.73,121.63,16.61]
[1766114920075,74.0984,121.73,121.63,131.7855]
[1766114920270,0.06102308,121.69,121.67,0.00395715]
[1766114920578,0.06102308,121.69,121.62,7.4044]
[1766114920873,18.18,121.71,121.62,115.1838]
[1766114921078,18.18,121.74,121.64,131.8278]
[1766114921282,18.18,121.74,121.64,16.66]